bitfinex/quotes_BTCUSD_20240906
["timestamp","ask_amount","ask_price","bid_price","bid_amount"]
[1725641148712,0.36948,54131.0,54128.0,0.1834]
[1725641148934,0.184743,54129.0,54128.0,0.1834]
[1725641149161,0.369441,54136.0,54128.0,0.1834]
[1725641149406,0.3344,54142.0,54131.0,0.369469]
[1725641149635,0.3344,54142.0,54128.0,0.18709453]
[1725641149636,0.18471,54139.0,54135.0,0.184722]
[1725641149865,0.184743,54129.0,54128.0,0.1834]
[1725641150318,0.184743,54129.0,54125.0,0.3554]
[1725641150319,0.184754,54126.0,54125.0,0.3554]
[1725641150551,0.369487,54129.0,54125.0,0.3554]
[1725641151031,0.369459,54134.0,54125.0,0.3554]
[1725641151247,0.184737,54131.0,54127.0,0.184749]
[1725641151466,0.184737,54131.0,54125.0,0.3554]
[1725641151467,0.18474,54130.0,54128.0,0.023]
[1725641151712,0.02894389,54132.0,54127.0,0.023]
[1725641151926,0.02894389,54132.0,54131.0,0.184737]
[1725641152149,0.1,54140.0,54134.0,0.184726]
[1725641152369,0.02894247,54139.0,54135.0,0.00369401]
[1725641152673,0.1,54141.0,54135.0,0.023]
[1725641152878,0.1,54141.0,54120.0,0.25]
[1725641152879,0.184771,54121.0,54120.0,0.25]
[1725641153102,0.923855,54121.0,54120.0,0.25]
[1725641153365,1.293397,54121.0,54120.0,0.25]
[1725641154709,0.923855,54121.0,54120.0,0.25]
[1725641155167,1.393397,54121.0,54120.0,0.25]
[1725641156045,1.762939,54121.0,54120.0,0.25]
[1725641156281,2.110139,54121.0,54120.0,0.25]
[1725641158298,2.010139,54121.0,54120.0,0.273]
[1725641158526,2.13731464,54121.0,54120.0,0.273]
[1725641158750,1.76777264,54121.0,54120.0,0.273]
[1725641159185,2.13731464,54121.0,54120.0,0.273]
[1725641159829,1.023855,54121.0,54120.0,0.273]
[1725641160042,1.393397,54121.0,54120.0,0.273]
[1725641160510,0.000815,54124.0,54120.0,0.273]
[1725641160746,0.00057934,54124.0,54123.0,0.184764]
[1725641160972,0.00057934,54124.0,54123.0,0.207764]
[1725641161188,0.00057934,54124.0,54123.0,0.94682]
[1725641161681,0.00057934,54124.0,54123.0,1.3985454]
[1725641161924,0.55430836,54145.0,54129.0,0.184742]
[1725641162160,0.55430836,54145.0,54130.0,0.0371]
[1725641162161,0.184724,54135.0,54130.0,0.0371]
[1725641162818,0.847243,54165.0,54130.0,0.0371]
[1725641162819,0.02830717,54143.0,54130.0,0.0371]
[1725641163034,0.184754,54126.0,54125.0,0.3532]
[1725641163262,0.554262,54126.0,54125.0,0.3532]
[1725641163955,0.1868,54139.0,54121.0,0.0371]
[1725641164069,0.369516,54125.0,54121.0,0.0371]
[1725641164269,0.21444658,54139.0,54121.0,0.0371]
[1725641164440,0.184757,54126.0,54123.0,0.0371]
[1725641164651,0.00328601,54138.0,54123.0,0.0371]
[1725641164652,0.554281,54124.0,54123.0,0.0371]
[1725641164871,0.554313,54121.0,54120.0,0.25]
[1725641165093,1.293397,54121.0,54120.0,0.25]
[1725641165550,2.114739,54121.0,54120.0,0.25]
[1725641165964,2.66926407,54121.0,54120.0,0.25]
[1725641166199,2.484281,54121.0,54120.0,0.25]
[1725641166692,2.114739,54121.0,54120.0,0.25]
[1725641166903,1.77276231,54121.0,54120.0,0.25]
[1725641167108,1.42096231,54121.0,54120.0,0.25]
[1725641167349,1.79050431,54121.0,54120.0,0.25]
[1725641167565,2.52108738,54121.0,54120.0,0.25]
[1725641167809,1.293995,54096.0,54088.0,0.5513]
[1725641168256,0.18488,54089.0,54088.0,0.5513]
[1725641168470,0.55464,54089.0,54088.0,0.5513]
[1725641168693,0.55464,54089.0,54088.0,0.1854]
[1725641169147,0.55464,54089.0,54086.0,0.00162]
[1725641169148,0.924435,54087.0,54086.0,0.00162]
[1725641169411,1.294209,54087.0,54086.0,0.00162]
[1725641169890,1.32317395,54087.0,54086.0,0.00162]
[1725641170104,1.294209,54087.0,54086.0,0.00162]
[1725641170756,1.763983,54087.0,54086.0,0.00162]
[1725641170965,1.394209,54087.0,54086.0,0.00162]
[1725641171196,2.04266235,54087.0,54086.0,0.00162]
[1725641171402,2.34446769,54087.0,54086.0,0.00162]
[1725641171685,2.71424169,54087.0,54086.0,0.00162]
[1725641171829,2.38716513,54087.0,54086.0,0.00162]
[1725641172469,2.75693913,54087.0,54086.0,0.00162]
[1725641172701,2.76893913,54087.0,54086.0,0.00162]
[1725641172915,2.76693913,54087.0,54086.0,0.00162]
[1725641173119,2.76893913,54087.0,54086.0,0.00162]
[1725641173330,2.9639222,54087.0,54086.0,0.00162]
[1725641173534,2.77893913,54087.0,54086.0,0.00162]
[1725641174188,2.76693913,54087.0,54086.0,0.00162]
[1725641174409,1.82969113,54087.0,54086.0,0.00162]
[1725641174869,2.19946513,54087.0,54086.0,0.00162]
[1725641175575,1.82969113,54087.0,54086.0,0.00162]
[1725641175788,0.96713244,54087.0,54086.0,0.00162]
[1725641176023,1.33690644,54087.0,54086.0,0.00162]
[1725641176651,1.70668044,54087.0,54086.0,0.00162]
[1725641177499,1.80668044,54087.0,54086.0,0.00162]
[1725641177727,1.83315045,54087.0,54086.0,0.00162]
[1725641177975,1.86212007,54087.0,54086.0,0.00162]
[1725641178135,2.67357347,54087.0,54086.0,0.00162]
[1725641178351,2.20552007,54087.0,54086.0,0.00162]
[1725641178565,1.49234607,54087.0,54086.0,0.00162]
[1725641179260,2.85137347,54087.0,54086.0,0.00162]
[1725641179865,1.45587207,54087.0,54086.0,0.00162]
[1725641180098,0.34032663,54087.0,54086.0,0.00162]
[1725641180370,0.31135701,54087.0,54086.0,0.00162]
[1725641180804,0.3486,54098.0,54086.0,0.00162]
[1725641181033,0.184862,54095.0,54086.0,0.00162]
[1725641181250,0.00328601,54094.0,54086.0,0.02462]
[1725641181459,0.00328601,54095.0,54086.0,0.02462]
[1725641181691,0.02734482,54098.0,54087.0,0.34659761]
[1725641181953,0.184813,54109.0,54088.0,0.4910534]
[1725641182169,0.00328601,54108.0,54090.0,0.369752]
[1725641182397,0.00328601,54108.0,54092.0,0.369739]
[1725641182606,0.00328601,54108.0,54093.0,0.21156091]
[1725641182816,0.00328601,54108.0,54095.0,0.184]
[1725641183031,0.02759156,54111.0,54097.0,0.3354]
[1725641183299,0.00328601,54110.0,54099.0,0.184845]
[1725641183512,0.184799,54113.0,54100.0,0.023]
[1725641183513,0.184803,54112.0,54100.0,0.023]
[1725641183718,0.18809201,54111.0,54100.0,0.023]
[1725641183932,0.02895914,54110.0,54098.0,0.21154353]
[1725641184190,0.18809001,54112.0,54099.0,0.184844]
[1725641184416,0.704876,54117.0,54099.0,0.184844]
[1725641184417,0.184796,54114.0,54101.0,0.184838]
[1725641184644,0.184796,54114.0,54102.0,0.023]
[1725641184645,0.37287701,54114.0,54102.0,0.023]
[1725641184882,0.369619,54110.0,54100.0,0.023]
[1725641185123,0.18809801,54109.0,54098.0,0.023]
[1725641185378,0.369577,54116.0,54103.0,0.184831]
[1725641185618,0.00328601,54115.0,54104.0,0.207828]
[1725641185881,0.02747646,54117.0,54104.0,0.0266964]
[1725641186102,0.184772,54121.0,54105.0,0.5333]
[1725641186340,0.184775,54120.0,54106.0,0.02669596]
[1725641186551,0.184772,54121.0,54109.0,0.18481]
[1725641186770,0.3682,54127.0,54110.0,0.023]
[1725641186771,0.369535,54122.0,54110.0,0.023]
[1725641187026,0.3682,54127.0,54113.0,0.184797]
[1725641187027,0.02822098,54124.0,54113.0,0.184797]
[1725641187193,0.000815,54124.0,54116.0,0.184786]
[1725641187446,0.000815,54124.0,54123.0,0.184764]
[1725641187866,0.000815,54124.0,54123.0,0.207764]
[1725641188080,0.000815,54124.0,54123.0,0.023]
[1725641188519,0.000815,54124.0,54123.0,0.577292]
[1725641188720,0.000815,54124.0,54123.0,0.98392]
[1725641188922,0.000815,54124.0,54123.0,0.023]
[1725641189146,0.000815,54124.0,54118.0,0.1838]
[1725641189147,0.000815,54124.0,54120.0,0.023]
[1725641189390,0.000815,54124.0,54120.0,0.184774]
[1725641189629,0.000815,54124.0,54119.0,0.023]
[1725641189630,0.000815,54124.0,54123.0,0.92382]
[1725641189837,0.000815,54124.0,54123.0,1.669248]
[1725641190085,0.000815,54124.0,54123.0,1.32272]
[1725641190311,0.000815,54124.0,54123.0,0.916092]
[1725641190555,0.000815,54124.0,54123.0,1.28562]
[1725641190797,0.000815,54124.0,54123.0,1.32272]
[1725641191234,0.000815,54124.0,54123.0,1.28562]
[1725641191674,0.000815,54124.0,54123.0,2.1232014]
[1725641191876,0.000815,54143.0,54123.0,1.61703379]
[1725641192099,0.000815,54143.0,54127.0,0.0371]
[1725641192306,0.000815,54143.0,54128.0,0.00369391]
[1725641192520,0.000815,54143.0,54129.0,0.5581]
[1725641192727,0.000815,54143.0,54130.0,0.00369391]
[1725641192948,0.000815,54143.0,54135.0,0.0371]
[1725641193156,0.000815,54143.0,54136.0,0.00369391]
[1725641193649,0.000815,54143.0,54137.0,0.3531]
[1725641194115,0.000815,54143.0,54138.0,0.023]
[1725641194334,0.184686,54146.0,54138.0,0.023]
[1725641194863,0.184718,54137.0,54132.0,0.3386]
[1725641195094,0.3555,54146.0,54127.0,0.3386]
[1725641195095,0.4680534,54133.0,54127.0,0.3386]
[1725641195555,0.184738,54131.0,54127.0,0.3386]
[1725641195790,0.364,54132.0,54122.0,0.5302]
[1725641196039,0.6528174,54123.0,54122.0,0.5302]
[1725641196269,0.184781,54118.0,54117.0,0.1965]
[1725641196489,0.4680534,54118.0,54108.0,0.183]
[1725641196731,0.6528354,54118.0,54108.0,0.183]
[1725641196947,0.4680534,54118.0,54108.0,0.183]
[1725641197400,0.39687455,54121.0,54108.0,0.183]
[1725641197401,0.184771,54121.0,54108.0,0.183]
[1725641197612,0.184789,54116.0,54108.0,0.183]
[1725641197829,0.4680534,54120.0,54108.0,0.183]
[1725641197830,0.184784,54118.0,54108.0,0.183]
[1725641198038,0.184795,54114.0,54108.0,0.183]
[1725641198240,0.369579,54116.0,54108.0,0.183]
[1725641198241,0.18479,54116.0,54108.0,0.183]
[1725641198452,0.4680534,54120.0,54108.0,0.552626]
[1725641198661,0.28478,54119.0,54108.0,0.183]
[1725641198877,0.184783,54118.0,54108.0,0.183]
[1725641199074,0.1,54117.0,54108.0,0.183]
[1725641199321,0.1,54117.0,54109.0,0.023]
[1725641199531,0.184788,54116.0,54109.0,0.023]
[1725641199753,0.1,54117.0,54110.0,0.00369583]
[1725641199951,0.12895104,54117.0,54111.0,0.02669571]
[1725641200162,0.21373604,54117.0,54111.0,0.023]
[1725641200400,0.21373604,54117.0,54109.0,0.023]
[1725641200401,0.184798,54114.0,54109.0,0.023]
[1725641200831,0.184799,54113.0,54109.0,0.023]
[1725641201034,0.184805,54112.0,54109.0,0.023]
[1725641201245,0.184806,54111.0,54109.0,0.023]
[1725641201459,0.184808,54110.0,54109.0,0.023]
[1725641201675,0.1,54116.0,54100.0,0.184841]
[1725641201676,0.184808,54111.0,54100.0,0.184841]
[1725641201880,0.184817,54108.0,54098.0,0.0371]
[1725641202105,0.369606,54112.0,54096.0,0.5296]
[1725641202346,0.369632,54108.0,54096.0,0.714454]
[1725641202557,0.369591,54114.0,54096.0,0.5296]
[1725641202766,0.184816,54108.0,54096.0,0.5296]
[1725641202973,0.1,54113.0,54096.0,0.5296]
[1725641203203,0.184801,54112.0,54102.0,0.184834]
[1725641203416,0.1,54113.0,54103.0,0.00369622]
[1725641203417,0.284801,54113.0,54103.0,0.00369622]
[1725641203671,0.1,54113.0,54096.0,0.5296]
[1725641203876,0.184819,54107.0,54097.0,0.184853]
[1725641204289,0.31972161,54114.0,54098.0,0.023]
[1725641204523,0.369625,54109.0,54098.0,0.023]
[1725641204727,0.369625,54109.0,54096.0,0.5296]
[1725641204728,0.184816,54108.0,54099.0,0.184845]
[1725641204951,0.1,54113.0,54105.0,0.184824]
[1725641205174,0.1,54113.0,54107.0,0.3278]
[1725641205386,0.369573,54117.0,54108.0,0.023]
[1725641205595,0.184792,54115.0,54108.0,0.023]
[1725641205803,0.1,54114.0,54108.0,0.207813]
[1725641206033,0.1,54114.0,54108.0,0.023]
[1725641206251,0.02,54136.0,54110.0,0.66912161]
[1725641206252,0.55512336,54130.0,54110.0,0.66912161]
[1725641206448,0.184779,54119.0,54111.0,0.023]
[1725641206655,0.184781,54118.0,54111.0,0.023]
[1725641206912,0.184786,54117.0,54111.0,0.023]
[1725641207145,0.184783,54118.0,54111.0,0.023]
[1725641207321,0.369558,54119.0,54111.0,0.023]
[1725641207560,0.369537,54122.0,54111.0,0.023]
[1725641207977,0.184785,54117.0,54111.0,0.023]
[1725641208816,0.31972161,54125.0,54111.0,0.023]
[1725641208817,0.184801,54112.0,54111.0,0.023]
[1725641209032,0.31972161,54115.0,54102.0,0.1945]
[1725641209260,1.293971,54097.0,54096.0,0.00163]
[1725641209472,1.61369261,54097.0,54096.0,0.00163]
[1725641209687,1.24398661,54097.0,54096.0,0.00163]
[1725641210125,0.924265,54097.0,54096.0,0.00163]
[1725641210539,1.61369261,54097.0,54096.0,0.00163]
[1725641210754,1.74265424,54097.0,54096.0,0.00163]
[1725641210960,1.42293263,54097.0,54096.0,0.00163]
[1725641211179,0.68352063,54097.0,54096.0,0.00163]
[1725641211395,1.05322663,54097.0,54096.0,0.00163]
[1725641211814,1.79263863,54097.0,54096.0,0.00163]
[1725641212462,2.12733863,54097.0,54096.0,0.00163]
[1725641213735,2.098377,54097.0,54096.0,0.00163]
[1725641213946,2.664883,54097.0,54096.0,0.00163]
[1725641214373,2.295177,54097.0,54096.0,0.00163]
[1725641215885,1.925471,54097.0,54096.0,0.00163]
[1725641218528,1.024265,54097.0,54096.0,0.00163]
[1725641218944,1.763677,54097.0,54096.0,0.00163]
[1725641219171,2.110777,54097.0,54096.0,0.00163]
[1725641219392,1.741071,54097.0,54096.0,0.00163]
[1725641220477,1.40033197,54097.0,54096.0,0.00163]
[1725641220900,1.77003797,54097.0,54096.0,0.00163]
[1725641221124,0.924435,54087.0,54086.0,0.00162]
[1725641221365,2.61520461,54087.0,54086.0,0.00162]
[1725641222248,1.024435,54087.0,54086.0,0.00162]
[1725641222703,1.34415661,54087.0,54086.0,0.00162]
[1725641223161,1.71393061,54087.0,54086.0,0.00162]
[1725641223382,2.68241637,54087.0,54086.0,0.00162]
[1725641224267,2.63240461,54087.0,54086.0,0.00162]
[1725641224501,3.00217861,54087.0,54086.0,0.00162]
[1725641224721,3.240912,54087.0,54086.0,0.00162]
[1725641224937,3.08490442,54087.0,54086.0,0.00162]
[1725641225155,3.40462603,54087.0,54086.0,0.00162]
[1725641225612,3.40462603,54087.0,54068.0,0.00162]
[1725641225613,0.02,54073.0,54068.0,0.00162]
[1725641225826,1.60386361,54069.0,54068.0,0.00162]
[1725641226040,1.71436061,54069.0,54068.0,0.00162]
[1725641226246,1.024742,54069.0,54068.0,0.00162]
[1725641226481,1.71436061,54069.0,54068.0,0.00162]
[1725641227341,2.24216061,54069.0,54068.0,0.00162]
[1725641227781,2.61205761,54069.0,54068.0,0.00162]
[1725641227999,2.61205761,54069.0,54063.0,0.00162]
[1725641228000,1.324758,54064.0,54063.0,0.00162]
[1725641228217,1.324758,54064.0,54055.0,0.00164]
[1725641228218,1.499547,54057.0,54055.0,0.00164]
[1725641228455,2.99050683,54057.0,54056.0,0.00144735]
[1725641228666,3.41022844,54057.0,54056.0,0.00144735]
[1725641228879,3.96519051,54057.0,54056.0,0.00144735]
[1725641229334,3.96519051,54057.0,54042.0,0.00164]
[1725641229335,2.246137,54043.0,54042.0,0.00164]
[1725641229606,2.66585861,54043.0,54042.0,0.00164]
[1725641230280,2.67585861,54043.0,54042.0,0.00164]
[1725641230494,2.69785861,54043.0,54042.0,0.00164]
[1725641230712,2.060769,54042.0,54041.0,1e-06]
[1725641230951,2.148769,54042.0,54041.0,1e-06]
[1725641231167,1.768687,54042.0,54041.0,1e-06]
[1725641231383,1.79768578,54042.0,54041.0,1e-06]
[1725641231597,1.42428578,54042.0,54041.0,1e-06]
[1725641232888,1.05420378,54042.0,54041.0,1e-06]
[1725641233102,1.025205,54042.0,54041.0,1e-06]
[1725641233311,0.655123,54042.0,54041.0,1e-06]
[1725641233731,0.285041,54042.0,54041.0,1e-06]
[1725641233937,1.025205,54042.0,54041.0,1e-06]
[1725641234166,0.655123,54042.0,54041.0,0.023001]
[1725641234592,0.1,54042.0,54041.0,0.023001]
[1725641234801,0.185025,54047.0,54041.0,0.418201]
[1725641235010,0.70392161,54056.0,54042.0,0.023]
[1725641235219,0.185025,54047.0,54042.0,0.023]
[1725641235451,0.370043,54048.0,54042.0,0.023]
[1725641235654,0.185036,54044.0,54042.0,0.023]
[1725641236102,0.185029,54046.0,54042.0,0.023]
[1725641236321,0.370043,54048.0,54042.0,0.023]
[1725641236527,0.18503,54046.0,54042.0,0.023]
[1725641236749,0.1,54045.0,54042.0,0.023]
[1725641236951,0.285031,54045.0,54042.0,0.023]
[1725641237181,0.1,54045.0,54042.0,0.023]
[1725641237412,0.12899111,54045.0,54042.0,0.023]
[1725641237639,0.555112,54043.0,54042.0,0.023]
[1725641237867,0.925187,54043.0,54042.0,0.023]
[1725641238098,1.295287,54042.0,54041.0,1e-06]
[1725641238323,1.395287,54042.0,54041.0,1e-06]
[1725641238781,1.765369,54042.0,54041.0,1e-06]
[1725641239232,1.395287,54042.0,54041.0,1e-06]
[1725641239446,0.1,54042.0,54041.0,1e-06]
[1725641239713,0.1,54042.0,54041.0,0.378401]
[1725641239914,0.88972161,54056.0,54041.0,0.378401]
[1725641239915,0.370022,54051.0,54041.0,0.378401]
[1725641240141,0.370057,54046.0,54041.0,0.568701]
[1725641240359,0.185041,54042.0,54041.0,0.568701]
[1725641240573,0.185035,54044.0,54041.0,0.591701]
[1725641240782,0.370058,54046.0,54042.0,0.023]
[1725641240990,0.478,54057.0,54042.0,0.023]
[1725641241222,0.555112,54043.0,54042.0,0.024632]
[1725641241648,0.55493958,54043.0,54042.0,0.001632]
[1725641241875,0.92501458,54043.0,54042.0,0.001632]
[1725641242303,1.02501458,54043.0,54042.0,0.001632]
[1725641242534,0.65493958,54043.0,54042.0,0.001632]
[1725641243380,1.02501458,54043.0,54042.0,0.001632]
[1725641243583,0.65493958,54043.0,54042.0,0.001632]
[1725641243793,1.02501458,54043.0,54042.0,0.001632]
[1725641244443,1.39508958,54043.0,54042.0,0.001632]
[1725641244855,1.02501458,54043.0,54042.0,0.001632]
[1725641245303,1.71481119,54043.0,54042.0,0.001632]
[1725641246618,2.11388079,54043.0,54042.0,0.001632]
[1725641246833,2.48858079,54043.0,54042.0,0.001632]
[1725641247874,2.41567008,54043.0,54042.0,0.001632]
[1725641248088,2.59837008,54043.0,54042.0,0.001632]
[1725641248523,2.96844508,54043.0,54042.0,0.001632]
[1725641248742,2.98844508,54043.0,54042.0,0.001632]
[1725641248976,1.37658822,54042.0,54041.0,1e-06]
[1725641249193,2.24267022,54042.0,54041.0,1e-06]
[1725641249419,2.61275222,54042.0,54041.0,1e-06]
[1725641250071,2.561451,54042.0,54041.0,1e-06]
[1725641250312,2.551451,54042.0,54041.0,1e-06]
[1725641251613,1.765369,54042.0,54041.0,1e-06]
[1725641252258,1.295287,54042.0,54041.0,1e-06]
[1725641252928,1.98509061,54042.0,54041.0,1e-06]
[1725641253852,2.72607261,54042.0,54041.0,1e-06]
[1725641254774,2.82607261,54042.0,54041.0,1e-06]
[1725641254983,2.83607261,54042.0,54041.0,1e-06]
[1725641255233,2.83607261,54042.0,54040.0,0.00162]
[1725641255234,1.325311,54041.0,54040.0,0.00162]
[1725641255470,1.425311,54041.0,54040.0,0.00162]
[1725641255677,1.7974,54041.0,54040.0,0.00162]
[1725641255883,1.295672,54026.0,54025.0,0.00164]
[1725641256094,2.08558561,54026.0,54025.0,0.00164]
[1725641256522,2.45577761,54026.0,54025.0,0.00164]
[1725641256744,2.343356,54026.0,54025.0,0.00164]
[1725641256968,2.737356,54026.0,54025.0,0.00164]
[1725641257201,2.788363,54026.0,54025.0,0.00164]
[1725641257445,2.81508018,54026.0,54025.0,0.00164]
[1725641257873,2.81508018,54026.0,54010.0,0.1]
[1725641257874,1.666323,54011.0,54010.0,0.1]
[1725641258076,2.08604461,54011.0,54010.0,0.1]
[1725641258505,2.11505491,54011.0,54010.0,0.1]
[1725641258748,1.7953333,54011.0,54010.0,0.1]
[1725641258963,0.2141573,54011.0,54010.0,0.6731]
[1725641259189,0.9547453,54011.0,54010.0,0.6731]
[1725641259402,0.9547453,54011.0,54010.0,0.6961]
[1725641259617,1.3250393,54011.0,54010.0,0.77856486]
[1725641259831,1.3250393,54011.0,54010.0,0.6961]
[1725641260047,1.666323,54011.0,54010.0,0.6961]
[1725641260258,1.98604461,54011.0,54010.0,0.6961]
[1725641260483,1.666323,54011.0,54010.0,0.6961]
[1725641260900,1.98604461,54011.0,54010.0,0.6961]
[1725641261137,2.45633861,54011.0,54010.0,0.3061]
[1725641261365,2.08604461,54011.0,54010.0,0.123]
[1725641261584,1.766323,54011.0,54010.0,0.123]
[1725641262243,0.370231,54021.0,54010.0,0.123]
[1725641262470,0.18513,54016.0,54015.0,0.3938]
[1725641262699,0.92565,54016.0,54015.0,0.3938]
[1725641262914,0.92565,54016.0,54015.0,0.4168]
[1725641263800,0.92565,54016.0,54015.0,0.47183512]
[1725641264028,0.92565,54016.0,54015.0,0.4168]
[1725641264484,0.95465628,54016.0,54015.0,0.4168]
[1725641265097,0.95465628,54016.0,54015.0,0.418432]
[1725641265338,0.95465628,54016.0,54015.0,0.4735389]
[1725641265557,1.32491628,54016.0,54015.0,0.4735389]
[1725641265794,1.32491628,54016.0,54015.0,0.001632]
[1725641266013,1.79517628,54016.0,54015.0,0.001632]
[1725641266464,1.42491628,54016.0,54015.0,0.001632]
[1725641267130,2.13643,54016.0,54015.0,0.001632]
[1725641267337,1.76617,54016.0,54015.0,0.001632]
[1725641267760,0.185121,54019.0,54015.0,0.564332]
[1725641267974,0.370235,54020.0,54015.0,0.564332]
[1725641268202,0.18513,54016.0,54015.0,0.564332]
[1725641268438,0.92565,54016.0,54015.0,0.564332]
[1725641268875,1.66617,54016.0,54015.0,0.564332]
[1725641269294,1.69517546,54016.0,54015.0,0.564332]
[1725641269504,1.79517546,54016.0,54015.0,0.001632]
[1725641269938,1.76617,54016.0,54015.0,0.001632]
[1725641270360,2.13643,54016.0,54015.0,0.001632]
[1725641272367,1.76617,54016.0,54015.0,0.001632]
[1725641274504,0.555372,54018.0,54015.0,0.386232]
[1725641274734,0.02761326,54020.0,54016.0,0.023]
[1725641274735,0.185126,54017.0,54016.0,0.023]
[1725641274974,0.925632,54017.0,54016.0,0.023]
[1725641275190,1.295885,54017.0,54016.0,0.023]
[1725641275399,1.61560661,54017.0,54016.0,0.023]
[1725641275600,1.29591,54016.0,54015.0,0.001632]
[1725641276030,1.66617,54016.0,54015.0,0.001632]
[1725641276265,1.39591,54016.0,54015.0,0.001632]
[1725641276466,1.42491742,54016.0,54015.0,0.001632]
[1725641277093,1.79517742,54016.0,54015.0,0.001632]
[1725641280315,1.42491742,54016.0,54015.0,0.001632]
[1725641280551,1.39591,54016.0,54015.0,0.001632]
[1725641280762,1.39591,54016.0,54015.0,0.392932]
[1725641280763,1.02565,54016.0,54015.0,0.392932]
[1725641280973,1.02565,54016.0,54015.0,0.415932]
[1725641281377,1.39591,54016.0,54015.0,0.024632]
[1725641281606,0.55539,54016.0,54015.0,0.024632]
[1725641281825,0.02761326,54020.0,54015.0,0.024632]
[1725641281826,0.02761326,54020.0,54016.0,0.373]
[1725641282063,0.02761326,54020.0,54015.0,0.20203456]
[1725641282064,0.18512,54019.0,54018.0,0.373]
[1725641282283,0.9256,54019.0,54018.0,0.373]
[1725641282502,0.9256,54019.0,54018.0,0.396]
[1725641282720,1.29584,54019.0,54018.0,0.396]
[1725641282944,0.000817,54025.0,54018.0,0.396]
[1725641282945,0.02820743,54025.0,54018.0,0.396]
[1725641283161,0.555352,54020.0,54019.0,0.023]
[1725641283369,1.295818,54020.0,54019.0,0.023]
[1725641283580,0.925585,54020.0,54019.0,0.023]
[1725641283802,0.9256,54019.0,54018.0,0.373]
[1725641284021,0.32053861,54025.0,54017.0,0.1967]
[1725641284022,0.925615,54018.0,54017.0,0.1967]
[1725641284697,0.02900469,54020.0,54017.0,0.1967]
[1725641284910,0.02900469,54020.0,54018.0,0.3983]
[1725641285357,0.02900469,54020.0,54019.0,0.023]
[1725641285579,0.000817,54025.0,54019.0,0.5912]
[1725641285787,0.000817,54025.0,54019.0,0.033]
[1725641286001,0.000817,54025.0,54021.0,0.5493]
[1725641286212,0.185916,54025.0,54021.0,0.5493]
[1725641286450,0.000817,54025.0,54021.0,0.5493]
[1725641286655,0.371016,54025.0,54022.0,0.023]
[1725641286879,0.185106,54023.0,54022.0,0.023]
[1725641287093,0.185103,54024.0,54022.0,0.023]
[1725641287537,0.000817,54025.0,54024.0,0.1806]
[1725641287993,0.68973361,54053.0,54027.0,0.5735]
[1725641287997,0.370077,54043.0,54029.0,0.185084]
[1725641288217,0.370077,54043.0,54030.0,0.5735]
[1725641288218,0.185059,54037.0,54030.0,0.5735]
[1725641288432,0.02899448,54038.0,54032.0,0.3929]
[1725641288861,0.370121,54037.0,54032.0,0.3929]
[1725641289099,0.185069,54034.0,54032.0,0.3929]
[1725641289329,0.02899448,54038.0,54032.0,0.3929]
[1725641289330,0.555216,54033.0,54032.0,0.3929]
[1725641289883,0.185066,54035.0,54032.0,0.4159]
[1725641290113,0.02899448,54038.0,54033.0,0.023]
[1725641290114,0.185068,54034.0,54033.0,0.023]
[1725641290352,0.02899448,54038.0,54031.0,0.1806]
[1725641290353,0.34871609,54038.0,54031.0,0.1806]
[1725641290597,0.185085,54029.0,54028.0,0.3655]
[1725641290829,0.185092,54027.0,54026.0,0.1981]
[1725641291062,0.185092,54027.0,54015.0,0.001632]
[1725641291063,0.555339,54021.0,54020.0,0.1981]
[1725641291285,0.185113,54021.0,54020.0,0.1981]
[1725641291498,0.370213,54023.0,54020.0,0.1981]
[1725641291499,0.185107,54023.0,54020.0,0.1981]
[1725641291768,0.370203,54025.0,54020.0,0.1981]
[1725641291991,0.1,54028.0,54020.0,0.1981]
[1725641291992,0.1,54024.0,54020.0,0.1981]
[1725641292468,0.185113,54021.0,54020.0,0.1981]
[1725641292686,0.18513,54016.0,54015.0,0.194832]
[1725641292920,0.18513,54016.0,54015.0,0.001632]
[1725641292921,1.24537161,54016.0,54015.0,0.001632]
[1725641293162,1.71563161,54016.0,54015.0,0.001632]
[1725641293410,2.10703161,54016.0,54015.0,0.001632]
[1725641293608,2.65869161,54016.0,54015.0,0.001632]
[1725641294041,2.68561633,54016.0,54015.0,0.001632]
[1725641294968,2.68761633,54016.0,54015.0,0.001632]
[1725641295653,2.68561633,54016.0,54015.0,0.001632]
[1725641295863,2.68561633,54016.0,54015.0,0.002632]
[1725641295864,2.69961633,54016.0,54015.0,0.002632]
[1725641296105,2.68561633,54016.0,54015.0,0.001632]
[1725641296627,1.74255633,54016.0,54015.0,0.001632]
[1725641297136,2.12681633,54016.0,54015.0,0.002632]
[1725641297392,2.11281633,54016.0,54015.0,0.001632]
[1725641298585,2.12681633,54016.0,54015.0,0.002632]
[1725641299049,2.11281633,54016.0,54015.0,0.001632]
[1725641299321,2.12681633,54016.0,54015.0,0.002632]
[1725641299560,2.12681633,54016.0,54015.0,0.001632]
[1725641299561,2.11481633,54016.0,54015.0,0.001632]
[1725641299815,2.14382593,54016.0,54015.0,0.002632]
[1725641300096,2.54632593,54016.0,54015.0,0.001632]
[1725641300325,2.91658593,54016.0,54015.0,0.001632]
[1725641300576,2.55832593,54016.0,54015.0,0.002632]
[1725641301453,2.52931633,54016.0,54015.0,0.002632]
[1725641302293,2.50131633,54016.0,54015.0,0.001632]
[1725641302766,1.43683472,54016.0,54015.0,0.002632]
[1725641302991,0.41118472,54016.0,54015.0,0.182532]
[1725641303253,0.41118472,54016.0,54015.0,0.206532]